bitfinex-derivatives/quotes_ETHF0:USTF0_20241228
["timestamp","ask_amount","ask_price","bid_price","bid_amount"]
[1735386944737,0.9111,3363.1,3362.9,0.29787]
[1735386945048,1.6138533,3363.0,3362.9,0.29788]
[1735386945338,1.6138533,3363.0,3362.7,40.8]
[1735386945640,1.6138533,3363.0,3362.9,0.29788]
[1735386946142,1.6138533,3363.0,3362.9,0.67034623]
[1735386946744,1.6138533,3363.0,3362.9,0.29788]
[1735386946936,1.6138533,3363.0,3362.9,0.67034798]
[1735386947736,1.6138533,3363.0,3362.9,0.29788]
[1735386947940,1.6138533,3363.0,3362.9,0.6703422]
[1735386949136,1.6138533,3363.0,3362.8,0.29789]
[1735386949334,1.6138533,3362.8,3362.7,41.09789]
[1735386949541,1.6138533,3362.8,3362.7,41.47036912]
[1735386950041,3.2078,3363.4,3362.8,0.29788]
[1735386950246,1.6138533,3362.8,3362.7,41.09789]
[1735386950442,1.6138533,3362.8,3362.7,41.47036682]
[1735386950948,1.6138533,3362.8,3362.7,41.17247682]
[1735386951138,0.4607,3363.2,3362.7,41.17247682]
[1735386951335,0.4607,3363.2,3362.7,40.8]
[1735386951336,0.29788,3362.9,3362.7,40.8]
[1735386951534,0.9201,3363.3,3362.7,40.8]
[1735386951746,0.29787,3363.0,3362.7,40.8]
[1735386952148,0.9201,3363.3,3362.7,40.8]
[1735386952350,0.29788,3362.9,3362.7,40.8]
[1735386952544,0.29789,3362.8,3362.7,40.8]
[1735386954445,0.9201,3363.3,3362.6,3.2078]
[1735386954647,0.2979,3362.7,3362.6,3.2078]
[1735386954950,0.2979,3362.7,3362.6,3.5057]
[1735386955648,0.4275,3363.0,3362.6,3.5057]
[1735386955847,0.29789,3362.8,3362.6,3.5057]
[1735386956051,0.4275,3363.0,3362.6,3.5057]
[1735386956251,0.2979,3362.7,3362.6,3.5057]
[1735386957155,0.2979,3362.7,3362.6,8.15560163]
[1735386957551,0.29789,3362.8,3362.7,0.29789]
[1735386957749,0.2979,3362.7,3362.6,7.85770163]
[1735386957955,0.2979,3362.7,3362.6,8.15560163]
[1735386958453,0.2979,3362.7,3362.6,3.5057]
[1735386959049,0.29789,3362.8,3362.7,0.29789]
[1735386960455,0.29789,3362.8,3362.7,13.86196758]
[1735386961355,0.29789,3362.8,3362.7,13.56407758]
[1735386962056,8.50569,3362.8,3362.7,13.56407758]
[1735386962356,10.07841513,3362.8,3362.7,13.56407758]
[1735386962556,8.50569,3362.8,3362.7,13.56407758]
[1735386962858,3.50569,3362.8,3362.7,13.56407758]
[1735386963057,0.29791,3362.5,3362.4,4.63149913]
[1735386964059,0.29791,3362.5,3362.0,41.09795]
[1735386964060,3.50569,3362.8,3362.3,4.63149913]
[1735386964360,4.39302,3362.4,3362.3,4.63149913]
[1735386965155,0.8873,3362.4,3362.2,4.92943913]
[1735386965358,0.4294,3362.4,3362.3,0.29793]
[1735386965662,0.4294,3362.4,3362.3,0.76093]
[1735386965855,0.29791,3362.6,3362.5,0.29791]
[1735386966062,0.2979,3362.7,3362.6,0.2979]
[1735386966258,1.3469,3362.7,3362.6,0.2979]
[1735386966568,1.049,3362.7,3362.6,0.2979]
[1735386967968,1.049,3362.7,3362.6,4.92939913]
[1735386968866,1.049,3362.7,3362.6,0.2979]
[1735386976560,1.049,3362.7,3362.6,4.92939913]
[1735386976867,1.3469,3362.7,3362.6,4.63149913]
[1735386978970,1.3469,3362.7,3362.5,4.92940913]
[1735386979472,1.3469,3362.7,3362.6,0.2979]
[1735386981368,2.3469,3362.7,3362.6,0.2979]
[1735386981573,2.049,3362.7,3362.4,4.63149913]
[1735386981763,2.049,3362.7,3362.5,0.29791]
[1735386981963,2.3469,3362.7,3362.5,0.29791]
[1735386982164,2.049,3362.7,3362.4,4.92941913]
[1735386982372,0.29791,3362.6,3362.5,0.29791]
[1735386982868,2.3469,3362.7,3362.5,0.29791]
[1735386983371,2.049,3362.7,3362.5,0.29791]
[1735386983574,2.049,3362.7,3362.4,4.63149913]
[1735386983765,2.3469,3362.7,3362.6,0.2979]
[1735386984370,2.049,3362.7,3362.6,0.2979]
[1735386984571,2.3469,3362.7,3362.6,0.2979]
[1735386985269,2.3469,3362.7,3362.6,4.92939913]
[1735386985971,2.3469,3362.7,3362.6,0.2979]
[1735386986767,2.3469,3362.7,3362.6,4.92939913]
[1735386987671,2.3469,3362.7,3362.6,0.2979]
[1735386988663,2.3469,3362.7,3362.6,4.92939913]
[1735386989469,2.049,3362.7,3362.6,4.92939913]
[1735386990267,2.3469,3362.7,3362.6,4.92939913]
[1735386992074,2.3469,3362.7,3362.6,4.63149913]
[1735386992572,2.049,3362.7,3362.6,4.92939913]
[1735386992971,2.3469,3362.7,3362.6,4.63149913]
[1735386993370,3.2078,3364.1,3362.6,9.63149913]
[1735386993575,0.7994,3363.9,3363.4,3.2078]
[1735386993870,0.7994,3363.9,3363.8,3.5056]
[1735386994577,0.7994,3363.9,3363.8,0.2978]
[1735386994979,0.7994,3363.9,3363.8,3.5056]
[1735386995173,0.344,3363.9,3363.8,3.5056]
[1735386995676,0.344,3363.9,3363.8,44.3056]
[1735386995875,0.344,3363.9,3363.8,57.87317037]
[1735386996779,0.344,3363.9,3363.8,48.93173331]
[1735386997273,0.29775,3364.4,3364.1,0.29777]
[1735386997882,0.70223,3363.9,3363.8,48.63393331]
[1735386998575,0.70223,3363.9,3363.8,44.3056]
[1735386999784,3.2078,3364.8,3363.8,49.0078]
[1735386999977,3.2078,3364.8,3364.5,0.29773]
[1735387001283,3.2078,3365.2,3364.4,2.78372513]
[1735387001586,0.4644,3364.9,3364.6,0.29772]
[1735387001881,0.4644,3364.9,3364.7,0.29772]
[1735387002082,0.7621,3364.9,3364.5,0.29774]
[1735387002378,0.4644,3364.9,3364.4,1.211]
[1735387002580,0.7621,3364.9,3364.5,0.29773]
[1735387002979,0.4644,3364.9,3364.4,2.78372513]
[1735387003175,0.7621,3364.9,3364.5,0.29773]
[1735387003379,0.4644,3364.9,3364.4,2.78372513]
[1735387003572,0.4644,3364.9,3364.3,3.2078]
[1735387003773,0.29774,3364.4,3364.3,3.2078]
[1735387003978,0.29774,3364.4,3363.9,3.2078]
[1735387004180,0.75685,3364.3,3363.9,3.50559]
[1735387004381,0.4644,3364.2,3363.9,3.2078]
[1735387004578,0.4644,3364.2,3363.4,3.93363]
[1735387004882,0.2978,3363.8,3363.5,42.011]
[1735387005077,0.29781,3363.7,3363.5,42.011]
[1735387005284,0.4638,3363.6,3363.4,3.2078]
[1735387005684,0.29782,3363.5,3363.4,3.2078]
[1735387005881,0.75032,3363.5,3363.4,44.0078]
[1735387008674,0.4525,3363.5,3363.4,44.0078]
[1735387008879,0.75032,3363.5,3363.4,44.0078]
[1735387009085,0.4525,3363.5,3363.4,44.0078]
[1735387010182,0.75032,3363.5,3363.4,44.0078]
[1735387010582,0.75032,3363.5,3363.4,40.8]
[1735387010782,1.21652,3363.5,3363.4,40.8]
[1735387011982,2.4662,3363.5,3363.4,40.8]
[1735387012182,2.0,3363.5,3363.4,41.09783]
[1735387012682,2.0,3363.5,3363.4,40.8]
[1735387012889,2.0,3363.5,3363.4,44.30563]
[1735387014083,2.0,3363.5,3363.4,44.0078]
[1735387014381,0.29786,3363.2,3363.0,3.2078]
[1735387014586,2.0,3363.5,3363.0,3.2078]
[1735387014782,2.0,3363.5,3363.4,3.50563]
[1735387015485,2.0,3363.5,3363.4,44.30563]
[1735387015686,2.0,3363.5,3363.4,44.0078]
[1735387016587,2.0,3363.5,3363.4,40.8]
[1735387016975,4.0,3363.5,3363.4,40.8]
[1735387017988,4.29782,3363.5,3363.4,40.8]
[1735387018487,0.29784,3363.4,3363.0,3.50566]
[1735387018683,0.72174,3363.4,3363.0,3.50566]
[1735387018880,0.29785,3363.3,3363.1,40.8]
[1735387019090,0.29785,3363.3,3363.1,41.09786]
[1735387019586,0.29785,3363.3,3363.0,3.2078]
[1735387019788,0.29786,3363.1,3363.0,3.2078]
[1735387020286,0.29786,3363.1,3363.0,44.0078]
[1735387021590,0.29786,3363.1,3363.0,3.2078]
[1735387023186,2.0,3363.1,3362.6,3.2078]
[1735387023493,0.4487,3363.0,3362.9,0.29788]
[1735387024793,0.74657,3363.0,3362.9,0.29788]
[1735387024988,0.4487,3363.0,3362.9,0.29788]
[1735387025188,0.4487,3363.0,3362.7,40.8]
[1735387025395,0.29789,3362.8,3362.7,40.8]
[1735387025794,0.2979,3362.7,3362.6,3.2078]
[1735387026183,0.2979,3362.7,3362.6,44.0078]
[1735387026793,0.2979,3362.7,3362.6,3.5057]
[1735387027487,0.4487,3363.0,3362.6,3.2078]
[1735387027696,0.29788,3362.9,3362.6,3.2078]
[1735387027996,0.29788,3362.9,3362.7,0.2979]
[1735387028192,0.29788,3362.9,3362.6,3.2078]
[1735387028395,0.29788,3362.9,3362.8,0.29789]
[1735387029500,0.29789,3362.8,3362.7,0.29789]
[1735387030302,2.4487,3363.0,3362.6,3.2078]
[1735387030493,3.6394,3362.7,3362.1,4.62613331]
[1735387030693,0.29794,3362.2,3362.1,4.62613331]
[1735387030899,0.29794,3362.2,3362.1,45.42613331]
[1735387031197,0.29793,3362.3,3362.1,45.42613331]
[1735387031397,0.29793,3362.3,3362.1,4.92408331]
[1735387031701,0.29793,3362.3,3362.1,0.29795]
[1735387031901,0.29793,3362.4,3361.8,1.57272513]
[1735387032096,0.29793,3362.4,3362.2,0.29794]
[1735387032296,0.29793,3362.4,3362.1,0.29794]
[1735387032505,0.29793,3362.4,3362.2,0.29793]
[1735387033194,0.4598,3362.6,3361.7,4.0765]
[1735387033504,5.4598,3362.6,3361.7,3.2078]
[1735387033696,0.29798,3361.8,3361.7,3.2078]
[1735387034495,0.29798,3361.8,3361.7,44.0078]
[1735387035100,0.29798,3361.8,3361.7,40.8]
[1735387035501,0.29799,3361.7,3361.5,0.298]
[1735387035693,0.29802,3361.4,3360.9,10.1510329]
[1735387035898,3.2078,3361.7,3360.9,10.1510329]
[1735387035899,0.29803,3361.3,3361.1,40.8]
[1735387036395,0.29802,3361.3,3361.1,40.8]
[1735387036802,0.4447,3361.6,3361.1,40.8]
[1735387037003,0.29803,3361.2,3361.1,40.8]
[1735387037997,0.29806,3360.9,3360.6,0.01967]
[1735387038299,3.2078,3361.3,3360.7,40.8]
[1735387038697,0.29806,3360.8,3360.7,40.8]
[1735387038894,3.2078,3361.3,3360.6,0.01967]
[1735387039095,0.75017,3360.7,3360.6,0.01967]
[1735387040298,3.95797,3360.7,3360.6,0.01967]
[1735387042700,0.4521,3360.7,3360.6,0.01967]
[1735387043304,0.29803,3361.3,3360.7,0.29807]
[1735387043500,0.73643,3361.3,3360.9,3.2078]
[1735387043701,0.73643,3361.3,3361.0,0.29805]
[1735387044100,0.4384,3361.3,3361.0,0.29805]
[1735387044609,0.73642,3361.3,3361.1,0.29804]
[1735387044809,3.6525,3361.6,3361.4,0.29801]
[1735387045000,0.8833,3361.9,3361.5,3.2078]
[1735387045304,0.29799,3361.7,3361.3,3.2078]
[1735387045702,0.29799,3361.7,3361.5,0.298]
[1735387045905,0.8833,3361.9,3361.3,3.2078]
[1735387046204,0.29795,3362.1,3361.4,1.57272513]
[1735387046400,0.29795,3362.1,3361.8,0.29797]
[1735387046607,0.29795,3362.1,3361.9,0.29796]
[1735387047008,0.29795,3362.1,3361.5,0.4392]
[1735387047605,0.29795,3362.1,3361.8,0.29797]
[1735387048000,0.4356,3362.2,3362.0,0.29796]
[1735387048206,3.6622,3362.3,3361.8,3.2078]
[1735387048507,0.29797,3361.9,3361.8,3.2078]
[1735387048906,0.29797,3361.9,3361.8,44.0078]
[1735387049709,0.29797,3361.9,3361.8,3.2078]
[1735387051409,0.29802,3361.3,3361.2,3.2078]
[1735387051811,0.29804,3361.1,3360.9,0.29805]
[1735387052011,0.29804,3361.1,3361.0,0.29805]
[1735387052711,0.29803,3361.2,3361.0,0.29804]
[1735387053513,0.29802,3361.4,3361.1,0.29803]
[1735387053713,0.29803,3361.3,3361.0,0.29804]
[1735387054407,0.4279,3361.6,3361.0,0.29804]
[1735387054613,0.29803,3361.2,3360.7,3.65602513]
[1735387054911,0.4279,3361.6,3360.7,3.65602513]
[1735387055117,0.29804,3361.1,3360.8,0.29806]
[1735387055311,0.4279,3361.6,3360.7,3.65602513]
[1735387055511,0.29803,3361.2,3360.9,0.29805]
[1735387057116,0.4279,3361.6,3360.7,3.65602513]
[1735387057516,0.4279,3361.6,3361.0,1.57272513]
[1735387057816,0.29801,3361.5,3361.2,0.29803]
[1735387059709,0.4279,3361.6,3361.0,1.57272513]
[1735387059910,0.29801,3361.4,3361.1,0.29803]
[1735387060715,0.298,3361.5,3361.2,0.29802]
[1735387060918,0.29801,3361.4,3361.2,0.29802]
[1735387061216,0.29801,3361.5,3361.2,0.29802]
[1735387061418,2.0,3361.4,3361.2,0.29802]
[1735387061619,2.29801,3361.4,3361.1,0.29803]
[1735387062015,2.29801,3361.4,3361.2,0.29803]
[1735387062622,2.29801,3361.4,3361.1,0.29803]
[1735387062811,2.0,3361.4,3361.2,0.29803]
[1735387063419,2.0,3361.4,3361.0,1.57272513]
[1735387063621,2.0,3361.4,3361.3,0.29802]
[1735387063822,2.0,3361.4,3361.0,1.57272513]
[1735387064017,2.29801,3361.4,3361.2,0.29803]
[1735387064417,2.0,3361.4,3361.2,0.29803]
[1735387065318,2.0,3361.4,3361.3,0.29802]
[1735387065523,2.0,3361.4,3361.3,5.07854513]
[1735387066023,2.0,3361.4,3361.3,46.25115384]
[1735387066522,2.0,3361.4,3361.3,45.87854513]
[1735387066719,0.75086,3362.0,3361.7,0.29798]
[1735387067720,0.29797,3361.9,3361.7,0.29798]
[1735387070624,0.75757,3361.9,3361.7,0.29798]
[1735387072128,0.75757,3361.9,3361.8,0.29798]
[1735387072523,0.75757,3361.9,3361.7,0.29798]
[1735387072723,0.4596,3361.9,3361.6,3.2078]
[1735387073024,0.75757,3361.9,3361.7,0.29798]
[1735387073323,0.29798,3361.7,3361.6,3.2078]
[1735387074428,0.29798,3361.8,3361.4,40.8]
[1735387074631,0.298,3361.5,3361.4,40.8]
[1735387075523,0.4474,3361.6,3361.4,40.8]
[1735387075831,0.7454,3361.6,3361.4,41.09801]
[1735387077532,0.4474,3361.6,3361.5,0.298]
[1735387077827,0.29798,3361.8,3361.6,0.29799]
[1735387078034,2.0,3361.9,3361.8,0.29798]
[1735387080024,2.0,3361.9,3361.8,1.51698]
[1735387080233,2.0,3361.9,3361.8,1.88952002]
[1735387080832,2.0,3361.9,3361.8,1.51698]
[1735387082224,2.0,3361.9,3361.8,6.51698]
[1735387082528,2.0,3361.9,3361.8,48.2855027]
[1735387082731,2.0,3361.9,3361.8,47.68948293]
[1735387082923,2.0,3361.9,3361.8,67.35408928]
[1735387083126,0.29788,3362.9,3362.1,0.74488]
[1735387083328,0.4647,3362.8,3362.7,0.2979]
[1735387083529,0.76259,3362.8,3362.3,0.29793]
[1735387084029,0.76259,3362.8,3362.6,0.2979]
[1735387084629,0.4647,3362.8,3362.7,0.2979]
[1735387085631,0.4647,3362.8,3362.7,1.5049]
[1735387085832,0.463,3362.9,3362.7,1.207]
[1735387086138,0.463,3362.9,3362.8,0.29789]
[1735387087333,0.463,3362.9,3362.7,1.207]
[1735387087531,0.76088,3362.9,3362.6,0.2979]
[1735387087932,0.29789,3362.8,3362.5,4.71271]
[1735387088132,0.463,3362.9,3362.5,4.4148]
[1735387088338,0.2979,3362.7,3362.5,4.4148]
[1735387088937,0.2979,3362.7,3362.5,4.71271]
[1735387089142,0.463,3362.9,3362.5,4.4148]
[1735387089441,0.463,3362.9,3362.7,0.29789]
[1735387089633,0.76088,3362.9,3362.7,0.29789]
[1735387090534,0.463,3362.9,3362.5,4.4148]
[1735387090741,0.29789,3362.8,3362.5,4.71271]
[1735387091540,0.463,3362.9,3362.5,4.4148]
[1735387091833,3.6708,3362.9,3362.1,3.2078]
[1735387092231,5.24352513,3362.9,3362.1,3.2078]
[1735387092431,0.29794,3362.2,3362.1,3.2078]
[1735387098134,0.29797,3361.9,3361.8,40.8]
[1735387099444,0.29798,3361.8,3361.5,0.298]
[1735387099644,0.4335,3361.7,3361.5,0.298]
[1735387099843,0.4335,3361.7,3361.6,41.09799]
[1735387100045,0.4335,3361.7,3361.6,40.8]
[1735387100744,0.4335,3361.7,3361.6,41.09799]
[1735387102057,0.4335,3361.7,3361.6,40.8]
[1735387102360,0.73148,3361.7,3361.6,40.8]
[1735387102555,0.4335,3361.7,3361.6,40.8]
[1735387102756,0.4335,3361.7,3361.6,41.09799]
[1735387106762,0.4595,3361.8,3361.6,40.8]
[1735387106960,0.4595,3361.8,3361.7,0.29798]
[1735387107363,0.4595,3361.8,3361.6,41.09799]
[1735387107562,0.9121,3361.7,3361.6,41.09799]
[1735387112965,0.4434,3361.7,3361.6,41.09799]
[1735387113172,0.4595,3361.8,3361.7,0.29798]
[1735387113374,3.2078,3362.0,3361.9,0.29797]
[1735387114175,3.6604,3362.0,3361.9,0.29797]
[1735387115567,3.6604,3362.0,3361.6,40.8]
[1735387115768,3.6604,3362.0,3361.7,0.29798]
[1735387115769,0.29797,3361.9,3361.7,0.29798]
[1735387116072,0.29798,3361.8,3361.7,0.29798]
[1735387117473,0.29798,3361.7,3361.6,40.8]
[1735387117676,0.29798,3361.7,3361.6,41.09799]
[1735387118069,0.298,3361.6,3361.5,0.298]
[1735387118274,0.7586,3361.6,3361.5,0.298]
[1735387118475,0.4606,3361.6,3361.5,41.098]
[1735387118876,0.4606,3361.6,3361.5,40.8]
[1735387119172,0.4606,3361.6,3361.5,41.098]
[1735387120164,0.75859,3361.6,3361.5,40.8]
[1735387120371,0.75859,3361.6,3361.4,0.29801]
[1735387120975,0.75859,3361.6,3361.5,40.8]
[1735387121279,0.75859,3361.6,3361.4,0.29801]
[1735387121772,0.75859,3361.6,3361.4,41.09801]
[1735387122575,0.75859,3361.6,3361.5,0.298]
[1735387122778,0.75859,3361.6,3361.4,41.098]
[1735387124268,0.4606,3361.6,3361.5,0.298]
[1735387124474,0.29799,3361.7,3361.5,0.298]
[1735387124975,0.298,3361.5,3361.4,40.8]
[1735387125278,0.4306,3361.8,3361.2,7.83349752]
[1735387125478,0.29802,3361.3,3361.2,7.83349752]
[1735387125675,0.29802,3361.3,3361.2,3.2078]
[1735387125975,0.74102,3361.3,3361.2,3.2078]
[1735387130477,0.443,3361.3,3360.7,5.82069752]
[1735387130675,0.4347,3361.2,3360.8,0.29806]
[1735387130879,0.29805,3360.9,3360.8,0.29806]
[1735387131080,0.4347,3361.2,3360.8,0.29806]
[1735387131276,0.4347,3361.2,3360.6,7.83349752]
[1735387131684,0.29804,3361.1,3360.9,0.29805]
[1735387132299,0.4347,3361.2,3360.6,7.83349752]
[1735387132477,0.4347,3361.2,3361.1,0.29804]
[1735387134370,0.74103,3361.3,3361.1,0.29804]
[1735387134572,0.4366,3361.2,3361.1,0.29804]
[1735387135685,0.73464,3361.2,3361.0,3.50584]
[1735387135883,0.29804,3361.1,3361.0,3.50584]
[1735387136183,0.4366,3361.2,3361.0,3.50584]
[1735387136384,0.73463,3361.2,3361.0,3.50584]
[1735387137081,0.29804,3361.1,3361.0,3.2078]
[1735387137282,0.73463,3361.2,3361.0,3.50584]
[1735387137787,0.4366,3361.2,3361.0,3.50584]
[1735387137990,0.29804,3361.1,3361.0,3.50584]
[1735387138483,0.4366,3361.2,3361.0,3.50584]
[1735387138484,0.73463,3361.2,3361.0,3.50584]
[1735387138687,0.4403,3361.4,3361.0,3.2078]
[1735387138987,0.4403,3361.4,3361.3,0.29802]
[1735387139286,0.73831,3361.4,3361.3,0.29802]
[1735387139478,0.4403,3361.4,3361.0,7.83349752]
[1735387139680,0.29802,3361.3,3361.0,7.83349752]
[1735387139881,0.29802,3361.3,3361.2,0.29803]
[1735387140078,0.4403,3361.4,3361.0,7.83349752]
[1735387140286,0.29802,3361.3,3361.0,8.13153752]
[1735387140488,0.29804,3361.2,3361.0,3.50584]
[1735387140682,0.4403,3361.4,3361.0,3.2078]
[1735387140886,0.29804,3361.1,3361.0,3.2078]
[1735387141787,0.29805,3361.0,3360.9,4.62569752]
[1735387141984,0.74975,3361.0,3360.9,4.62569752]
[1735387142980,0.74975,3361.0,3360.8,4.92375752]
[1735387143589,0.4517,3361.0,3360.9,0.29805]
[1735387144086,0.4517,3361.0,3360.9,4.92374752]
[1735387144593,0.29802,3361.3,3361.1,0.29803]
[1735387146490,0.29802,3361.3,3361.2,0.29803]
[1735387152500,0.73831,3361.4,3361.3,0.29802]
[1735387154603,0.29802,3361.3,3361.2,0.29802]
[1735387157402,0.73832,3361.4,3361.3,0.29802]
[1735387160011,0.4403,3361.4,3361.3,0.29802]
[1735387160213,0.73831,3361.4,3361.3,0.29802]
[1735387161916,0.4403,3361.4,3361.3,0.29802]
[1735387162213,0.73831,3361.4,3361.3,0.29802]
[1735387162414,0.73831,3361.4,3361.3,4.92371752]
[1735387162812,0.4403,3361.4,3361.3,4.92371752]
[1735387163522,0.298,3361.5,3361.3,6.51023184]
[1735387163712,0.298,3361.6,3361.5,0.298]
[1735387164018,0.298,3361.5,3361.4,0.29801]
[1735387164418,0.298,3361.5,3361.4,4.94567344]
[1735387167322,1.3131,3361.6,3361.5,0.298]
[1735387167323,1.6111,3361.6,3361.5,0.298]
[1735387168423,1.6111,3361.6,3361.5,4.94652104]
[1735387169722,1.6111,3361.6,3361.5,4.64852104]
[1735387171518,1.6111,3361.6,3361.5,4.94652104]
[1735387176117,1.6111,3361.6,3361.5,4.64852104]
[1735387176327,2.35625754,3361.6,3361.5,4.64852104]
[1735387177728,2.35625754,3361.6,3361.5,4.94652104]
[1735387179026,2.35625754,3361.6,3361.5,4.64852104]
[1735387179930,2.05825754,3361.6,3361.4,4.94653104]
[1735387180128,0.298,3361.5,3361.4,4.94653104]
[1735387180719,0.298,3361.5,3361.4,6.81106529]
[1735387188440,0.298,3361.5,3361.4,6.51305529]
[1735387188629,0.298,3361.5,3361.4,6.81106529]
[1735387191439,0.298,3361.5,3361.4,13.74961157]
[1735387192235,0.298,3361.5,3361.4,13.45160157]
[1735387193339,0.298,3361.5,3361.4,11.16366712]
[1735387195340,0.298,3361.5,3361.4,6.51305529]
[1735387196543,0.29802,3361.3,3361.2,7.23656628]
[1735387196737,0.29802,3361.3,3361.2,6.93854628]
[1735387197445,0.29802,3361.3,3361.2,6.51713385]
[1735387198436,3.95295754,3361.4,3361.0,4.6525531]
[1735387198731,1.04319754,3361.1,3361.0,4.6525531]
[1735387199742,0.74515754,3361.1,3360.9,4.6525531]
[1735387199945,1.60535,3361.0,3360.9,4.6525531]
[1735387200838,1.60535,3361.0,3360.9,4.9506031]
[1735387201142,1.60535,3361.0,3360.9,0.29805]
[1735387202045,1.3073,3361.0,3360.8,4.6525531]
[1735387202241,0.29805,3360.9,3360.8,4.9506131]
[1735387203638,3.2078,3361.4,3360.8,5.39771064]
[1735387203849,3.50582,3361.4,3361.3,0.29802]
[1735387204341,3.2078,3361.4,3361.0,0.74515754]
[1735387204545,0.29803,3361.3,3361.2,0.29802]
[1735387204843,3.50582,3361.4,3361.3,0.29802]
[1735387205034,3.2078,3361.4,3361.3,0.29802]
[1735387205641,3.2078,3361.4,3361.3,4.9505731]
[1735387206747,0.29799,3361.6,3361.4,0.29801]
[1735387207446,0.29799,3361.6,3361.4,4.94295851]
[1735387207646,0.298,3361.5,3361.4,4.94295851]
[1735387207842,0.298,3361.5,3361.4,4.64494851]
[1735387208549,0.29801,3361.4,3361.3,4.64494851]
[1735387208741,1.04316754,3361.4,3361.3,4.64494851]
[1735387209747,0.29802,3361.3,3361.2,3.2078]
[1735387210052,0.74515754,3361.4,3361.2,3.2078]
[1735387210249,0.29802,3361.3,3361.2,3.50582]
[1735387210550,0.29802,3361.3,3361.2,3.2078]
[1735387210944,0.29802,3361.3,3361.2,7.85274851]
[1735387211143,0.29802,3361.3,3361.2,4.64494851]
[1735387211947,0.74515754,3361.4,3361.1,4.64494851]
[1735387212149,1.46788754,3361.2,3361.1,4.64494851]
[1735387213147,1.16985754,3361.2,3360.7,4.94301851]
[1735387213343,0.29806,3360.8,3360.7,4.94301851]
[1735387214651,0.9224,3361.1,3360.7,4.64494851]
[1735387214851,0.29806,3360.9,3360.8,0.29806]
[1735387215955,0.29806,3360.9,3360.8,4.94300851]
[1735387217655,0.29806,3360.9,3360.8,4.64494851]
[1735387218156,0.9224,3361.1,3360.8,4.64494851]
[1735387218359,0.9224,3361.1,3361.0,0.29805]
[1735387218659,0.76722,3361.4,3361.3,0.29802]
[1735387219158,0.4692,3361.4,3361.3,0.29802]
[1735387219355,0.76721,3361.4,3361.3,0.29802]
[1735387219754,0.76721,3361.4,3361.2,0.74515754]
[1735387219955,0.76721,3361.4,3361.2,1.04317754]
[1735387220155,0.76721,3361.4,3361.2,5.68812605]
[1735387220563,0.29802,3361.3,3361.2,5.68812605]
[1735387221358,0.4692,3361.4,3361.2,5.68812605]
[1735387221557,0.29802,3361.3,3361.2,5.68812605]
[1735387221967,0.29802,3361.3,3361.2,1.04317754]
[1735387222463,0.4692,3361.4,3361.2,1.04317754]
[1735387222664,0.76722,3361.4,3361.2,1.04317754]
[1735387222963,0.76722,3361.4,3361.2,0.74497754]
[1735387226965,0.76722,3361.4,3361.3,0.29802]
[1735387228361,4.6850425,3361.6,3361.3,3.2078]
[1735387228672,4.6850425,3361.6,3361.5,1.04315754]
[1735387229367,0.4333,3361.9,3361.5,0.74515754]
[1735387229572,0.4333,3361.9,3361.8,3.50578]
[1735387236672,1.20245,3362.1,3362.0,0.29796]
[1735387237375,0.29796,3362.0,3361.9,0.29796]
[1735387239585,1.20245,3362.1,3362.0,0.29796]
[1735387242684,0.9045,3362.1,3362.0,0.29796]
[1735387243975,0.4601,3362.1,3362.0,0.29796]
[1735387246387,0.29797,3361.9,3361.3,10.14634628]
[1735387246584,1.04314754,3361.6,3361.3,10.14634628]
[1735387246882,4.25094754,3361.6,3361.3,6.93854628]
[1735387247087,0.29803,3361.3,3361.1,4.94297851]
[1735387247387,1.18053,3361.2,3361.1,4.94297851]
[1735387247688,1.63603,3361.2,3361.1,4.64494851]
[1735387247881,1.338,3361.2,3361.1,4.94298851]
[1735387248381,0.29802,3361.3,3361.1,4.64494851]
[1735387248583,0.29802,3361.3,3361.2,0.29803]
[1735387248787,0.29801,3361.4,3361.2,0.29803]
[1735387249085,0.29801,3361.4,3360.9,1.167]
[1735387249281,0.29801,3361.4,3361.2,0.29802]
[1735387252182,0.29802,3361.3,3361.2,0.29802]
[1735387252585,0.29802,3361.3,3360.9,1.167]
[1735387252877,0.29802,3361.3,3361.1,0.29803]
[1735387256587,0.29803,3361.2,3361.1,0.29803]
[1735387257385,0.29803,3361.2,3361.0,0.29804]
[1735387258598,0.29802,3361.3,3361.1,0.29803]
[1735387258794,0.29803,3361.2,3361.1,0.29803]
[1735387258992,0.29803,3361.3,3361.1,0.29803]
[1735387259393,0.29803,3361.2,3361.1,0.29803]
[1735387260092,1.3303,3361.5,3361.1,0.29803]
[1735387260396,0.29803,3361.3,3361.1,0.29803]
[1735387263390,1.62831,3361.5,3361.3,0.29802]
[1735387263589,0.29801,3361.4,3361.3,0.29802]
[1735387265999,1.3303,3361.5,3361.4,0.29801]
[1735387266299,0.4277,3361.5,3361.4,0.29801]
[1735387267401,3.2078,3361.6,3361.5,0.298]
[1735387269196,1.3623,3361.8,3361.7,0.29798]
[1735387269392,1.3623,3361.8,3361.7,3.50578]
[1735387269593,4.6850425,3362.3,3362.2,0.29794]
[1735387269796,4.6850425,3362.3,3362.2,1.04247246]
[1735387270198,5.5618425,3362.4,3362.3,0.29793]
[1735387271298,5.5618425,3362.4,3362.2,0.74453246]
[1735387271493,5.8597725,3362.4,3362.2,1.04246246]
[1735387271901,1.62133246,3362.4,3361.9,0.29796]
[1735387272206,0.29798,3361.8,3361.7,7.85274851]
[1735387272901,1.15928,3361.8,3361.7,3.2078]